bitfinex/quotes_BTCUSD_20250726
["timestamp","ask_amount","ask_price","bid_price","bid_amount"]
[1753555352840,6.64316506,118210.0,118200.0,0.002]
[1753555353059,6.66695035,118210.0,118200.0,0.002]
[1753555353286,6.65902171,118210.0,118200.0,0.002]
[1753555353479,6.66694677,118210.0,118200.0,0.002]
[1753555353716,6.66694025,118210.0,118200.0,0.002]
[1753555354412,6.65901519,118210.0,118200.0,0.002]
[1753555354614,6.65900915,118210.0,118200.0,0.002]
[1753555357522,6.65899696,118210.0,118200.0,0.002]
[1753555357993,6.60899696,118210.0,118200.0,0.002]
[1753555358177,6.65899696,118210.0,118200.0,0.002]
[1753555359266,6.2807633,118210.0,118200.0,0.002]
[1753555359483,6.3307633,118210.0,118200.0,0.002]
[1753555360136,6.2807633,118210.0,118200.0,0.002]
[1753555360357,6.3149314,118210.0,118200.0,0.002]
[1753555361027,6.33075526,118210.0,118200.0,0.002]
[1753555361670,6.0025216,118210.0,118200.0,0.002]
[1753555361916,6.33075526,118210.0,118200.0,0.002]
[1753555362337,6.3149314,118210.0,118200.0,0.002]
[1753555363845,5.93669774,118210.0,118200.0,0.002]
[1753555364057,6.2649314,118210.0,118200.0,0.002]
[1753555364270,6.3149314,118210.0,118200.0,0.002]
[1753555364684,6.3139214,118210.0,118200.0,0.002]
[1753555365657,1.4218674,118210.0,118200.0,0.002]
[1753555365846,6.3139214,118210.0,118200.0,0.002]
[1753555366418,6.2885024,118210.0,118200.0,0.002]
[1753555367561,6.2385024,118210.0,118200.0,0.002]
[1753555367763,1.3464484,118210.0,118200.0,0.002]
[1753555367974,6.2885024,118210.0,118200.0,0.002]
[1753555369187,6.27105338,118210.0,118200.0,0.002]
[1753555369370,5.96026874,118210.0,118200.0,0.002]
[1753555369796,1.3964484,118210.0,118200.0,0.002]
[1753555370032,6.61673606,118210.0,118200.0,0.002]
[1753555370243,6.56673606,118210.0,118200.0,0.002]
[1753555370450,6.5825571,118210.0,118200.0,0.002]
[1753555370665,6.6325571,118210.0,118200.0,0.002]
[1753555370882,6.30432344,118210.0,118200.0,0.002]
[1753555371094,6.2885024,118210.0,118200.0,0.002]
[1753555371289,5.96026874,118210.0,118200.0,0.002]
[1753555371540,6.2385024,118210.0,118200.0,0.002]
[1753555371755,6.61673606,118210.0,118200.0,0.002]
[1753555371979,6.2885024,118210.0,118200.0,0.002]
[1753555372736,6.27105338,118210.0,118200.0,0.002]
[1753555372955,5.96026874,118210.0,118200.0,0.002]
[1753555373193,6.2885024,118210.0,118200.0,0.002]
[1753555373698,6.2720024,118210.0,118200.0,0.002]
[1753555373963,1.3677484,118210.0,118200.0,0.002]
[1753555374212,6.2598024,118210.0,118200.0,0.002]
[1753555374949,1.3762356,118210.0,118200.0,0.002]
[1753555375174,5.94005594,118210.0,118200.0,0.002]
[1753555375393,6.28412106,118210.0,118200.0,0.002]
[1753555376228,5.9558874,118210.0,118200.0,0.002]
[1753555376649,6.28412106,118210.0,118200.0,0.002]
[1753555376850,6.28412492,118210.0,118200.0,0.002]
[1753555377066,6.23412492,118210.0,118200.0,0.002]
[1753555377281,6.2682896,118210.0,118200.0,0.002]
[1753555378041,6.28412904,118210.0,118200.0,0.002]
[1753555378394,6.2682896,118210.0,118200.0,0.002]
[1753555378630,6.28413446,118210.0,118200.0,0.002]
[1753555379864,6.284143,118210.0,118200.0,0.002]
[1753555381481,6.29803196,118210.0,118200.0,0.002]
[1753555381893,6.29803196,118210.0,118200.0,0.02679]
[1753555384799,6.70864646,118210.0,118200.0,0.02679]
[1753555385649,6.69324646,118210.0,118200.0,0.02679]
[1753555385861,6.69327202,118210.0,118200.0,0.02679]
[1753555386009,6.69327495,118210.0,118200.0,0.02679]
[1753555386224,6.64327495,118210.0,118200.0,0.02679]
[1753555386489,6.69327495,118210.0,118200.0,0.02679]
[1753555386713,1.80122095,118210.0,118200.0,0.02679]
[1753555386927,6.64327495,118210.0,118200.0,0.02679]
[1753555387118,6.68533547,118210.0,118200.0,0.02679]
[1753555387355,6.69327493,118210.0,118200.0,0.02679]
[1753555387964,6.69327488,118210.0,118200.0,0.02679]
[1753555389380,6.69327486,118210.0,118200.0,0.02679]
[1753555390542,6.69327479,118210.0,118200.0,0.02679]
[1753555391684,7.10810887,118210.0,118200.0,0.002]
[1753555391923,7.12674389,118210.0,118200.0,0.002]
[1753555392128,7.13116722,118210.0,118200.0,0.002]
[1753555392344,6.61622314,118210.0,118200.0,0.002]
[1753555392562,5.06127305,118190.0,118180.0,0.20003337]
[1753555392814,5.95022754,118190.0,118180.0,0.03288]
[1753555393067,5.80506754,118190.0,118180.0,0.06088]
[1753555393285,5.94164695,118190.0,118180.0,0.06088]
[1753555393990,5.94156695,118190.0,118180.0,0.06088]
[1753555395030,5.94156695,118190.0,118180.0,0.06288]
[1753555395441,5.57214287,118190.0,118180.0,0.06288]
[1753555395648,5.94156695,118190.0,118180.0,0.06288]
[1753555398276,5.94156695,118190.0,118180.0,0.23211337]
[1753555398277,5.94100695,118190.0,118180.0,0.23211337]
[1753555399360,4.91796382,118190.0,118180.0,0.23211337]
[1753555399563,5.24850434,118190.0,118180.0,0.23211337]
[1753555399862,5.61792842,118190.0,118180.0,0.23211337]
[1753555401432,5.24850434,118190.0,118180.0,0.23211337]
[1753555401860,5.61792842,118190.0,118180.0,0.23211337]
[1753555405604,5.60946783,118190.0,118180.0,0.23211337]
[1753555406731,0.71741383,118190.0,118180.0,0.23211337]
[1753555407115,5.60946783,118190.0,118180.0,0.23211337]
[1753555411680,0.71741383,118190.0,118180.0,0.23211337]
[1753555411893,5.60946783,118190.0,118180.0,0.23211337]
[1753555412753,5.60100703,118190.0,118180.0,0.23211337]
[1753555413164,5.59254615,118190.0,118180.0,0.23211337]
[1753555414956,5.59254615,118190.0,118180.0,0.06288]
[1753555419093,5.44814615,118190.0,118180.0,0.23211337]
[1753555419262,5.59026615,118190.0,118180.0,0.23211337]
[1753555420013,0.69821215,118190.0,118180.0,0.23211337]
[1753555420191,5.59026615,118190.0,118180.0,0.23211337]
[1753555420648,5.22084207,118190.0,118180.0,0.23211337]
[1753555420820,5.59026615,118190.0,118180.0,0.23211337]
[1753555421483,5.22245207,118190.0,118180.0,0.23211337]
[1753555421629,5.59187615,118190.0,118180.0,0.23211337]
[1753555423898,5.59187615,118190.0,118180.0,0.06288]
[1753555426466,0.69982215,118190.0,118180.0,0.06288]
[1753555426666,5.59187615,118190.0,118180.0,0.06288]
[1753555427286,5.22245207,118190.0,118180.0,0.06288]
[1753555427452,5.59187615,118190.0,118180.0,0.06288]
[1753555430144,0.69982215,118190.0,118180.0,0.06288]
[1753555430411,5.59187615,118190.0,118180.0,0.23211337]
[1753555430610,5.22245207,118190.0,118180.0,0.23211337]
[1753555430826,5.59187615,118190.0,118180.0,0.23211337]
[1753555432364,5.6003371,118190.0,118180.0,0.23211337]
[1753555432585,5.60879783,118190.0,118180.0,0.23211337]
[1753555438904,5.23937375,118190.0,118180.0,0.23211337]
[1753555439107,5.60879783,118190.0,118180.0,0.23211337]
[1753555439950,5.23937375,118190.0,118180.0,0.23211337]
[1753555440091,5.60879783,118190.0,118180.0,0.23211337]
[1753555441455,0.71674383,118190.0,118180.0,0.23211337]
[1753555441880,5.60879783,118190.0,118180.0,0.23211337]
[1753555443901,5.46667783,118190.0,118180.0,0.23211337]
[1753555444121,5.60607783,118190.0,118180.0,0.23211337]
[1753555445281,5.5976171,118190.0,118180.0,0.23211337]
[1753555446405,5.4582171,118190.0,118180.0,0.23211337]
[1753555446611,5.5974171,118190.0,118180.0,0.23211337]
[1753555447098,5.57996808,118190.0,118180.0,0.23211337]
[1753555447966,5.5974171,118190.0,118180.0,0.23211337]
[1753555449020,5.58895615,118190.0,118180.0,0.23211337]
[1753555450266,5.58895615,118190.0,118180.0,0.06288]
[1753555456289,5.44975615,118190.0,118180.0,0.06288]
[1753555456506,5.58819615,118190.0,118180.0,0.06288]
[1753555456941,0.69614215,118190.0,118180.0,0.06288]
[1753555457216,5.21877207,118190.0,118180.0,0.23211337]
[1753555457430,5.58819615,118190.0,118180.0,0.23211337]
[1753555458551,0.69614215,118190.0,118180.0,0.23211337]
[1753555458777,5.58819615,118190.0,118180.0,0.23211337]
[1753555459007,5.58819615,118190.0,118180.0,0.06288]
[1753555461491,0.69614215,118190.0,118180.0,0.06288]
[1753555461697,5.58819615,118190.0,118180.0,0.06288]
[1753555462495,0.69614215,118190.0,118180.0,0.06288]
[1753555462719,5.58819615,118190.0,118180.0,0.06288]
[1753555463570,0.69614215,118190.0,118180.0,0.06288]
[1753555463795,5.29745813,118190.0,118180.0,0.23211337]
[1753555464003,5.61289806,118190.0,118180.0,0.23211337]
[1753555467524,5.47513806,118190.0,118180.0,0.23211337]
[1753555467718,5.61257806,118190.0,118180.0,0.23211337]
[1753555469178,5.47513806,118190.0,118180.0,0.23211337]
[1753555469363,5.61245806,118190.0,118180.0,0.23211337]
[1753555469580,5.61233806,118190.0,118180.0,0.23211337]
[1753555470835,5.60387754,118190.0,118180.0,0.23211337]
[1753555471432,5.46667754,118190.0,118180.0,0.23211337]
[1753555471636,5.60375754,118190.0,118180.0,0.23211337]
[1753555472052,0.71170354,118190.0,118180.0,0.23211337]
[1753555472252,5.60375754,118190.0,118180.0,0.23211337]
[1753555474162,5.46667754,118190.0,118180.0,0.23211337]
[1753555474383,5.60355754,118190.0,118180.0,0.23211337]
[1753555474557,5.23413346,118190.0,118180.0,0.23211337]
[1753555474759,5.60355754,118190.0,118180.0,0.23211337]
[1753555474992,5.60355754,118190.0,118180.0,0.22191055]
[1753555476444,5.60335754,118190.0,118180.0,0.22191055]
[1753555477293,0.71130354,118190.0,118180.0,0.22191055]
[1753555477510,5.60335754,118190.0,118180.0,0.22191055]
[1753555478386,0.71130354,118190.0,118180.0,0.22191055]
[1753555478557,5.60335754,118190.0,118180.0,0.22191055]
[1753555479167,5.59489695,118190.0,118180.0,0.05267718]
[1753555480199,5.22547287,118190.0,118180.0,0.22191055]
[1753555480400,0.70284295,118190.0,118180.0,0.22191055]
[1753555480606,5.59489695,118190.0,118180.0,0.22191055]
[1753555481440,5.45821695,118190.0,118180.0,0.22191055]
[1753555481755,5.59469695,118190.0,118180.0,0.22191055]
[1753555487562,5.58623615,118190.0,118180.0,0.22191055]
[1753555488794,5.44975615,118190.0,118180.0,0.22191055]
[1753555489002,5.58571615,118190.0,118180.0,0.05267718]
[1753555489203,5.58571615,118190.0,118180.0,0.05059718]
[1753555489631,5.58563615,118190.0,118180.0,0.04738718]
[1753555490258,5.21621207,118190.0,118180.0,0.04738718]
[1753555490674,5.58563615,118190.0,118180.0,0.04738718]
[1753555491717,5.21621207,118190.0,118180.0,0.04738718]
[1753555491938,5.58563615,118190.0,118180.0,0.04738718]
[1753555494956,5.58563615,118190.0,118180.0,0.05031718]
[1753555495191,5.21621207,118190.0,118180.0,0.05031718]
[1753555495417,5.58563615,118190.0,118180.0,0.05031718]
[1753555495643,5.21621207,118190.0,118180.0,0.05031718]
[1753555495869,5.58563615,118190.0,118180.0,0.05031718]
[1753555496625,5.58527615,118190.0,118180.0,0.05031718]
[1753555497050,0.69322215,118190.0,118180.0,0.05031718]
[1753555497271,5.58527615,118190.0,118180.0,0.05031718]
[1753555499176,0.69322215,118190.0,118180.0,0.05031718]
[1753555499399,5.44975615,118190.0,118180.0,0.05031718]
[1753555499658,5.58507615,118190.0,118180.0,0.05031718]
[1753555501507,5.44975615,118190.0,118180.0,0.05031718]
[1753555501721,5.58499615,118190.0,118180.0,0.05031718]
[1753555502732,5.21557207,118190.0,118180.0,0.05031718]
[1753555502991,5.58499615,118190.0,118180.0,0.05031718]
[1753555504077,5.21557207,118190.0,118180.0,0.05031718]
[1753555504283,0.69294215,118190.0,118180.0,0.21955055]
[1753555504702,5.58499615,118190.0,118180.0,0.21955055]
[1753555504941,5.58499615,118190.0,118180.0,0.05031718]
[1753555506338,5.44975615,118190.0,118180.0,0.05031718]
[1753555506540,5.58499615,118190.0,118180.0,0.05031718]
[1753555509923,0.69294215,118190.0,118180.0,0.05031718]
[1753555510148,5.58499615,118190.0,118180.0,0.05031718]
[1753555510769,5.21557207,118190.0,118180.0,0.05031718]
[1753555511025,0.69294215,118190.0,118180.0,0.05031718]
[1753555511438,5.58499615,118190.0,118180.0,0.05031718]
[1753555513000,5.58499615,118190.0,118180.0,0.22170055]
[1753555515182,0.69294215,118190.0,118180.0,0.22170055]
[1753555515411,5.58499615,118190.0,118180.0,0.22170055]
[1753555518469,5.08033207,118190.0,118180.0,0.22170055]
[1753555518675,5.58495615,118190.0,118180.0,0.22170055]
[1753555518876,5.58334615,118190.0,118180.0,0.22170055]
[1753555522760,5.44814615,118190.0,118180.0,0.22170055]
[1753555522959,5.58334615,118190.0,118180.0,0.22170055]
[1753555523372,5.58495615,118190.0,118180.0,0.22170055]
[1753555524478,5.21553207,118190.0,118180.0,0.22170055]
[1753555524692,5.58495615,118190.0,118180.0,0.22170055]
[1753555526591,5.58334615,118190.0,118180.0,0.22170055]
[1753555527265,5.44814615,118190.0,118180.0,0.22170055]
[1753555527527,5.58334615,118190.0,118180.0,0.22170055]
[1753555527892,5.58495615,118190.0,118180.0,0.22170055]
[1753555529363,5.44975615,118190.0,118180.0,0.22170055]
[1753555529608,5.58495615,118190.0,118180.0,0.22170055]
[1753555530475,5.21553207,118190.0,118180.0,0.22170055]
[1753555530684,5.58495615,118190.0,118180.0,0.22170055]
[1753555530844,5.58495615,118190.0,118180.0,0.19691055]
[1753555531250,5.58495615,118190.0,118180.0,0.22079055]
[1753555531452,5.44975615,118190.0,118180.0,0.22079055]
[1753555531661,5.58491615,118190.0,118180.0,0.22079055]
[1753555532482,5.21549207,118190.0,118180.0,0.22079055]
[1753555532707,5.58491615,118190.0,118180.0,0.22079055]
[1753555534370,0.69286215,118190.0,118180.0,0.22079055]
[1753555534595,5.58491615,118190.0,118180.0,0.22079055]
[1753555535312,5.21549207,118190.0,118180.0,0.22079055]
[1753555535524,5.58491615,118190.0,118180.0,0.22079055]
[1753555536170,5.58491615,118190.0,118180.0,0.05155718]
[1753555536592,5.58487615,118190.0,118180.0,0.05155718]
[1753555538917,5.21545207,118190.0,118180.0,0.05155718]
[1753555539069,5.58487615,118190.0,118180.0,0.05155718]
[1753555541911,5.21545207,118190.0,118180.0,0.05155718]
[1753555542147,5.58487615,118190.0,118180.0,0.05155718]
[1753555542815,0.69282215,118190.0,118180.0,0.05155718]
[1753555543030,5.58487615,118190.0,118180.0,0.05155718]
[1753555544483,5.5933371,118190.0,118180.0,0.05155718]
[1753555552106,0.7012831,118190.0,118180.0,0.05155718]
[1753555552334,5.5933371,118190.0,118180.0,0.04940718]
[1753555553057,0.7012831,118190.0,118180.0,0.04940718]
[1753555553280,5.5933371,118190.0,118180.0,0.04940718]
[1753555556662,5.5932171,118190.0,118180.0,0.04940718]
[1753555558249,0.7011631,118190.0,118180.0,0.04940718]
[1753555558475,5.5932171,118190.0,118180.0,0.04940718]
[1753555559622,5.5931771,118190.0,118180.0,0.04940718]
[1753555560563,5.22375302,118190.0,118180.0,0.04940718]
[1753555560990,5.5931771,118190.0,118180.0,0.04940718]
[1753555561684,5.22375302,118190.0,118180.0,0.05143718]
[1753555561943,5.5931371,118190.0,118180.0,0.05143718]
[1753555564633,0.7010831,118190.0,118180.0,0.05143718]
[1753555564859,5.5931371,118190.0,118180.0,0.05143718]
[1753555566680,5.4582171,118190.0,118180.0,0.05143718]
[1753555566808,5.5931371,118190.0,118180.0,0.05143718]
[1753555570222,5.57568808,118190.0,118180.0,0.05143718]
[1753555570436,5.5931371,118190.0,118180.0,0.05143718]
[1753555573971,5.5930571,118190.0,118180.0,0.05143718]
[1753555575963,5.57560808,118190.0,118180.0,0.05143718]
[1753555576377,5.5930571,118190.0,118180.0,0.05143718]
[1753555582523,5.22363302,118190.0,118180.0,0.05143718]
[1753555582733,5.5930571,118190.0,118180.0,0.05143718]
[1753555583938,4.90897482,118190.0,118180.0,0.59855622]
[1753555584161,0.66010148,118190.0,118180.0,0.61547898]
[1753555584378,0.16010148,118190.0,118180.0,0.61547898]
[1753555584645,0.16010148,118190.0,118180.0,0.62394014]
[1753555584646,0.15164082,118190.0,118180.0,0.62394014]
[1753555584878,0.15164068,118190.0,118180.0,0.63240137]
[1753555585294,0.16010113,118190.0,118180.0,0.63240137]
[1753555585511,4.9174342,118200.0,118190.0,0.20977993]
[1753555585731,5.0521542,118200.0,118190.0,0.60926401]
[1753555586097,5.21289898,118200.0,118190.0,0.60080313]
[1753555586689,5.20543889,118200.0,118190.0,0.43158408]
[1753555586889,5.20543889,118200.0,118190.0,0.43258408]
[1753555587296,5.20543889,118200.0,118190.0,0.60180313]
[1753555587502,5.20543889,118200.0,118190.0,0.23237905]
[1753555588165,5.20543889,118200.0,118190.0,0.24084]
[1753555588380,5.20543889,118200.0,118190.0,0.24930088]
[1753555589392,5.03619395,118200.0,118190.0,0.62718576]
[1753555589620,5.06153393,118200.0,118190.0,0.63564642]
[1753555589822,5.0530737,118200.0,118190.0,0.63564642]
[1753555590019,5.06153386,118200.0,118190.0,0.63564642]
[1753555591423,5.06153386,118200.0,118190.0,0.25776168]
[1753555591424,5.06153436,118200.0,118190.0,0.25776168]
[1753555591845,5.23073909,118200.0,118190.0,0.62718569]
[1753555592051,5.23073909,118200.0,118190.0,0.61872496]
[1753555592348,5.23073909,118200.0,118190.0,0.62718576]
[1753555592607,5.23073909,118200.0,118190.0,0.63564649]
[1753555592850,5.06153436,118200.0,118190.0,0.64410715]
[1753555593017,5.06153436,118200.0,118190.0,0.62718576]
[1753555593517,4.92689436,118200.0,118190.0,0.62718576]
[1753555593764,5.06153436,118200.0,118190.0,0.63564649]
[1753555594735,5.06153436,118200.0,118190.0,0.62718576]
[1753555594955,5.06153436,118200.0,118190.0,0.63564649]
[1753555595159,5.06153436,118200.0,118190.0,0.62718576]
[1753555596211,5.06153436,118200.0,118190.0,0.63564649]
[1753555596448,5.06153436,118200.0,118190.0,0.62718576]
[1753555596652,5.05307441,118200.0,118190.0,0.62718576]
[1753555597167,5.22227914,118200.0,118190.0,0.61872496]
[1753555597380,5.22227914,118200.0,118190.0,0.62718576]
[1753555598800,5.04461418,118200.0,118190.0,0.62718576]
[1753555599157,5.04461418,118200.0,118190.0,0.61872496]
[1753555599362,5.0360738,118200.0,118190.0,0.62718569]
[1753555599568,5.05299334,118200.0,118190.0,0.61872496]
[1753555599799,5.06145343,118200.0,118190.0,0.62718569]
[1753555600001,5.06145343,118200.0,118190.0,0.62718576]
[1753555601108,5.06145343,118200.0,118190.0,0.63564649]
[1753555601550,5.06145343,118200.0,118190.0,0.62718576]
[1753555601982,5.06145343,118200.0,118190.0,0.24930088]
[1753555602190,5.06145343,118200.0,118190.0,0.61872496]
[1753555602399,5.06145343,118200.0,118190.0,0.62718576]
[1753555602813,5.06991366,118200.0,118190.0,0.61872496]
[1753555602999,5.06145343,118200.0,118190.0,0.61872496]
[1753555603209,5.06145343,118200.0,118190.0,0.62718576]
[1753555603595,5.06145343,118200.0,118190.0,0.61872496]
[1753555604214,5.061454,118200.0,118190.0,0.61872496]
[1753555605313,5.061454,118200.0,118190.0,0.62718576]
[1753555605524,5.22219893,118200.0,118190.0,0.23237905]
[1753555605745,5.22219893,118200.0,118190.0,0.61026408]
[1753555606386,5.22219893,118200.0,118190.0,0.24084]
[1753555606824,5.22219893,118200.0,118190.0,0.23237905]
[1753555607002,5.22219893,118200.0,118190.0,0.24084]
[1753555607157,5.22219893,118200.0,118190.0,0.24930088]
[1753555607368,5.21373898,118200.0,118190.0,0.24084]
[1753555607569,5.21534898,118200.0,118190.0,0.24084]
[1753555608193,5.21534898,118200.0,118190.0,0.23237905]
[1753555608580,5.21534898,118200.0,118190.0,0.24084]
[1753555609093,5.21534898,118200.0,118190.0,0.23237905]
[1753555609887,5.20688889,118200.0,118190.0,0.24084]
[1753555610292,5.20688889,118200.0,118190.0,0.24930088]
[1753555610768,5.20688889,118200.0,118190.0,0.24084]
[1753555610935,5.20688889,118200.0,118190.0,0.23237905]
[1753555611376,5.19842873,118200.0,118190.0,0.23237905]
[1753555612721,0.30637473,118200.0,118190.0,0.06316]
[1753555613154,5.19842873,118200.0,118190.0,0.06316]
[1753555614039,5.19842873,118200.0,118190.0,0.23237905]
[1753555616037,5.06386873,118200.0,118190.0,0.23237905]
[1753555616293,5.19826873,118200.0,118190.0,0.23237905]
[1753555616700,5.20672882,118200.0,118190.0,0.23237905]
[1753555617015,5.20672882,118200.0,118190.0,0.24084]
[1753555618786,5.20672882,118200.0,118190.0,0.23237905]
[1753555619216,5.20672882,118200.0,118190.0,0.24084]
[1753555619414,5.20672882,118200.0,118190.0,0.23237905]
[1753555619622,5.20672882,118200.0,118190.0,0.24084]
[1753555620693,5.20672882,118200.0,118190.0,0.23237905]
[1753555621096,5.20672882,118200.0,118190.0,0.24084]
[1753555621547,5.04598396,118200.0,118190.0,0.24084]
[1753555621837,5.06290385,118200.0,118190.0,0.24930088]
[1753555621999,5.06290378,118200.0,118190.0,0.25776168]
[1753555622237,5.06290378,118200.0,118190.0,0.24930088]
[1753555623055,5.06290378,118200.0,118190.0,0.24084]
[1753555623272,5.06290378,118200.0,118190.0,0.61026408]
[1753555623586,5.06290378,118200.0,118190.0,0.24084]
[1753555623992,5.06290378,118200.0,118190.0,0.61026408]
[1753555624318,5.06290378,118200.0,118190.0,0.61872496]
[1753555624869,5.07136401,118200.0,118190.0,0.61872496]
[1753555625322,0.17931001,118200.0,118190.0,0.61872496]
[1753555625737,0.17931001,118200.0,118190.0,0.62718576]
[1753555625925,0.17931001,118200.0,118190.0,0.61872496]
[1753555627640,0.17084978,118200.0,118190.0,0.25776168]
[1753555628059,0.17084978,118200.0,118190.0,0.24930088]
[1753555628653,0.17084978,118200.0,118190.0,0.25776168]
[1753555628979,0.17084978,118200.0,118190.0,0.24930088]
[1753555630551,0.17084978,118200.0,118190.0,0.61872496]
[1753555631164,0.17770001,118200.0,118190.0,0.61872496]
[1753555631449,0.16923978,118200.0,118190.0,0.61872496]
[1753555632216,0.16923978,118200.0,118190.0,0.62718576]
[1753555632923,0.16923978,118200.0,118190.0,0.24930088]
[1753555633117,0.16923978,118200.0,118190.0,0.25776168]
[1753555633403,0.16923978,118200.0,118190.0,0.61872496]
[1753555633658,0.16923978,118200.0,118190.0,0.62718576]
[1753555633952,0.16923978,118200.0,118190.0,0.25776168]
[1753555634169,0.16924035,118200.0,118190.0,0.25776168]
[1753555634418,0.16924035,118200.0,118190.0,0.24930088]
[1753555634651,0.33844508,118200.0,118190.0,0.24930088]
[1753555634867,0.33844508,118200.0,118190.0,0.25776168]
[1753555636939,0.34694781,118200.0,118190.0,0.25776168]
[1753555637859,0.34694781,118200.0,118190.0,0.24930088]
[1753555638927,0.16928285,118200.0,118190.0,0.25776168]
[1753555639350,0.16928285,118200.0,118190.0,0.24930088]
[1753555639771,0.16928285,118200.0,118190.0,0.25776168]
[1753555641051,0.16928285,118200.0,118190.0,0.24930088]
[1753555641711,0.16928285,118200.0,118190.0,0.25776168]
[1753555643521,0.16928285,118200.0,118190.0,0.24930088]
[1753555643690,0.16928285,118200.0,118190.0,0.25776168]
[1753555643895,0.16082269,118200.0,118190.0,0.26622241]
[1753555644109,0.16082226,118200.0,118190.0,0.26622241]
[1753555644307,0.16082226,118200.0,118190.0,0.27468271]
[1753555644512,0.16928228,118200.0,118190.0,0.25776146]
[1753555644729,0.16082226,118200.0,118190.0,0.26622212]
[1753555645059,0.501,118200.0,118190.0,0.64410636]
[1753555645218,0.64353966,118200.0,118190.0,0.64410636]
[1753555645625,0.14353966,118200.0,118190.0,0.64410636]
[1753555646108,0.001,118200.0,118190.0,1.4349909]
[1753555646316,0.001,118200.0,118190.0,1.5094909]
[1753555646983,4.856e-05,118210.0,118200.0,0.22608457]
[1753555647198,4.856e-05,118210.0,118200.0,1.18555003]
[1753555647410,4.856e-05,118210.0,118200.0,1.21213003]
[1753555647620,4.856e-05,118210.0,118200.0,1.29660733]
[1753555648856,4.856e-05,118210.0,118200.0,1.63860733]
[1753555649500,4.856e-05,118210.0,118200.0,1.63960733]
[1753555649921,4.856e-05,118210.0,118200.0,1.50556733]
[1753555650122,4.856e-05,118210.0,118200.0,1.63956733]
[1753555653117,4.856e-05,118210.0,118200.0,1.90506733]
[1753555653336,4.856e-05,118210.0,118200.0,1.77106733]
[1753555653549,4.856e-05,118210.0,118200.0,1.90502733]
[1753555653762,4.856e-05,118210.0,118200.0,1.77106733]
[1753555653969,4.856e-05,118210.0,118200.0,1.90502733]
[1753555669613,4.856e-05,118210.0,118200.0,1.77106733]
[1753555669974,4.856e-05,118210.0,118200.0,1.90482733]
[1753555671565,4.856e-05,118210.0,118200.0,1.16597917]
[1753555671812,4.856e-05,118210.0,118200.0,1.90482733]
[1753555682562,4.856e-05,118210.0,118200.0,1.16597917]
[1753555682759,4.856e-05,118210.0,118200.0,1.90482733]
[1753555692907,0.039841,118240.0,118220.0,0.20973441]
[1753555693145,0.02418955,118240.0,118230.0,0.78403109]
[1753555693388,0.02579955,118240.0,118230.0,0.78191657]
[1753555695009,0.02679955,118240.0,118230.0,0.78191657]
[1753555695289,0.02579955,118240.0,118230.0,0.78191657]
[1753555695520,0.02679955,118240.0,118230.0,0.78291657]
[1753555695722,0.02679955,118240.0,118230.0,0.86739387]
[1753555697282,0.02679955,118240.0,118230.0,1.13289387]
[1753555700206,0.01029955,118240.0,118230.0,1.15582387]
[1753555702229,0.01029955,118240.0,118230.0,1.15894387]
[1753555703117,0.01029955,118240.0,118230.0,0.79802651]
[1753555703340,0.01029955,118240.0,118230.0,1.15894387]
[1753555704768,0.00868955,118240.0,118230.0,1.16099387]
[1753555704986,0.00868955,118240.0,118230.0,1.17669387]
[1753555705130,0.00868955,118240.0,118230.0,1.16099387]
[1753555705335,0.00868955,118240.0,118230.0,1.16962503]
[1753555709671,0.00868955,118240.0,118230.0,1.18532503]
[1753555709889,0.00868955,118240.0,118230.0,1.17669387]
[1753555712532,0.00868955,118240.0,118230.0,1.19179387]
[1753555713009,0.00868955,118240.0,118230.0,0.82236979]
[1753555713289,0.00868955,118240.0,118230.0,1.04321387]
[1753555713479,0.00868955,118240.0,118230.0,1.17641387]
[1753555713684,0.00868955,118240.0,118230.0,1.18474869]
[1753555714183,0.00868955,118240.0,118230.0,1.17641387]
[1753555714595,0.00868955,118240.0,118230.0,0.80698979]
[1753555714800,0.00868955,118240.0,118230.0,1.16071387]
[1753555717649,0.01714635,118240.0,118230.0,1.02751387]
[1753555717905,5.5078495,118240.0,118230.0,0.6532591]
[1753555718101,5.5078495,118240.0,118230.0,0.57723981]
[1753555718726,5.5078495,118240.0,118230.0,0.57723989]
[1753555719187,5.5078495,118240.0,118230.0,0.44411989]
[1753555719390,5.5078495,118240.0,118230.0,0.5687818]
[1753555720754,5.5078495,118240.0,118230.0,0.57723989]
[1753555720992,5.5078495,118240.0,118230.0,0.3201979]
[1753555721893,5.5068395,118240.0,118230.0,0.31173989]
[1753555722152,5.5068395,118240.0,118230.0,0.3032818]
[1753555722866,5.5068395,118240.0,118230.0,0.31173989]
[1753555723307,5.5068395,118240.0,118230.0,0.3201979]
[1753555723529,5.5078495,118240.0,118230.0,0.3032418]
[1753555723747,5.5078495,118240.0,118230.0,0.31169989]
[1753555723956,5.5068395,118240.0,118230.0,0.31169989]
[1753555725030,5.5068395,118240.0,118230.0,0.3201579]
[1753555725517,5.5068395,118240.0,118230.0,0.31169989]
[1753555726102,5.5068395,118240.0,118230.0,0.3032418]
[1753555726935,5.49838242,118240.0,118230.0,0.3032418]
[1753555728683,5.49838242,118240.0,118230.0,0.31169989]
[1753555729514,5.33769201,118240.0,118230.0,0.32015783]
[1753555730190,5.33769201,118240.0,118230.0,0.31169989]
[1753555730386,4.96826793,118240.0,118230.0,0.3201579]
[1753555730606,5.33769201,118240.0,118230.0,0.3201579]
[1753555730833,5.33769201,118240.0,118230.0,0.31169989]
[1753555731312,5.33769201,118240.0,118230.0,0.3201579]
[1753555731523,5.33769201,118240.0,118230.0,0.1870779]
[1753555731750,5.33769201,118240.0,118230.0,0.3200779]
[1753555732558,5.34614938,118240.0,118230.0,0.3200779]
[1753555732971,5.32964938,118240.0,118230.0,0.3200779]
[1753555733845,5.32964938,118240.0,118230.0,0.1870779]
[1753555734020,5.32964938,118240.0,118230.0,0.3200379]
[1753555734993,5.32964938,118240.0,118230.0,0.3449179]
[1753555736515,5.31324938,118240.0,118230.0,0.3449179]
[1753555738009,5.48239687,118240.0,118230.0,0.3280018]
[1753555738219,5.49889687,118240.0,118230.0,0.31149981]
[1753555738624,5.48239687,118240.0,118230.0,0.17861981]
[1753555738778,5.48239687,118240.0,118230.0,0.31995775]
[1753555739119,5.48239687,118240.0,118230.0,0.33637981]
[1753555739374,4.92772473,118240.0,118230.0,0.35781512]
[1753555739562,4.93618203,118240.0,118230.0,0.35781512]
[1753555739857,4.93618203,118240.0,118230.0,0.34800768]
[1753555740303,4.93618203,118240.0,118230.0,0.33954981]
[1753555740509,4.93618203,118240.0,118230.0,0.34800768]
[1753555740731,4.93618203,118240.0,118230.0,0.34796775]
[1753555740938,0.04412803,118240.0,118230.0,0.34796775]
[1753555741155,4.93618203,118240.0,118230.0,0.34796775]
[1753555741388,4.93618203,118240.0,118230.0,0.35642562]
[1753555741613,4.93618203,118240.0,118230.0,0.34796775]
[1753555742071,4.93618203,118240.0,118230.0,0.35642562]